fUST/lending_fUST_20240904
["ID","MTS","AMOUNT","RATE_DAILY","PERIOD"]
[337100996,1725426667375,-500.0,0.00029589,2]
[337100997,1725426667385,-919.57,0.00029589,2]
[337100998,1725426667395,-204.77929,0.00029751,2]
[337100999,1725426667404,-1155.55,0.000298,14]
[337101000,1725426667416,-267.57,0.000298,14]
[337101001,1725426667426,-500.0,0.00029863,2]
[337101002,1725426667437,-500.0,0.00029863,2]
[337101003,1725426667446,-500.0,0.00029863,2]
[337101004,1725426667456,-500.0,0.00029863,2]
[337101005,1725426667465,-500.0,0.00029863,2]
[337101006,1725426667474,-500.0,0.00029863,2]
[337101007,1725426667484,-500.0,0.00029863,2]
[337101008,1725426667493,-500.0,0.00029863,2]
[337101009,1725426667502,-1302.87,0.00029863,2]
[337101010,1725426667511,-1156.02,0.00029863,2]
[337101011,1725426667521,-760.8,0.00029863,2]
[337101012,1725426667531,-500.0,0.00029863,2]
[337101013,1725426667541,-2082.53,0.00029863,2]
[337101014,1725426667551,-500.0,0.00029863,2]
[337101015,1725426667560,-10473.4,0.00029863,2]
[337101016,1725426667569,-500.0,0.00029863,2]
[337101017,1725426667578,-885.72,0.00029863,2]
[337101018,1725426667587,-871.3,0.00029863,2]
[337101019,1725426667597,-2887.27,0.00029863,2]
[337101020,1725426667606,-1285.92,0.00029863,2]
[337101021,1725426667615,-985.59,0.00029863,2]
[337101022,1725426667625,-4135.59,0.00029863,2]
[337101023,1725426667634,-500.0,0.00029863,2]
[337101024,1725426667643,-500.0,0.00029863,2]
[337101025,1725426667653,-500.0,0.00029863,2]
[337101026,1725426667664,-500.0,0.00029863,2]
[337101027,1725426667675,-500.0,0.00029863,2]
[337101028,1725426667684,-500.0,0.00029863,2]
[337101029,1725426667693,-543.17,0.00029863,2]
[337101030,1725426667704,-6518.68,0.00029863,2]
[337101031,1725426667714,-500.0,0.00029863,2]
[337101032,1725426667724,-1587.43,0.00029863,2]
[337101033,1725426667735,-881.43,0.00029863,2]
[337101034,1725426667746,-5985.78,0.00029863,2]
[337101035,1725426667756,-506.34,0.00029863,2]
[337101036,1725426667766,-500.0,0.00029863,2]
[337101037,1725426667776,-1326.71,0.00029863,2]
[337101038,1725426667786,-500.0,0.00029863,2]
[337101039,1725426667796,-760.48,0.00029863,2]
[337101040,1725426667806,-500.0,0.00029863,2]
[337101041,1725426667815,-500.0,0.00029863,2]
[337101042,1725426667825,-500.0,0.00029863,2]
[337101043,1725426667834,-1143.83,0.00029863,2]
[337101044,1725426667844,-2460.73,0.00029863,2]
[337101045,1725426667853,-500.0,0.00029863,2]
[337101046,1725426667863,-500.0,0.00029863,2]
[337101047,1725426667872,-500.0,0.00029863,2]
[337101048,1725426667883,-584.31,0.00029863,2]
[337101049,1725426667893,-1986.82,0.00029863,2]
[337101050,1725426667903,-807.59,0.00029863,2]
[337101051,1725426667990,-1131.76,0.00029863,2]
[337101052,1725426668003,-500.0,0.00029863,2]
[337101053,1725426668014,-500.0,0.00029863,2]
[337101054,1725426668033,-500.0,0.00029863,2]
[337101055,1725426668043,-919.57,0.00029863,2]
[337101056,1725426668053,-2383.881999,0.00029863,7]
[337101057,1725426668063,-2383.881999,0.00029863,7]
[337101058,1725426668072,-151.0,0.00029863,2]
[337101059,1725426668082,-250.7,0.000299,2]
[337101060,1725426668091,-250.699999,0.000299,2]
[337101061,1725426668100,-65989.98,0.000299,14]
[337101062,1725426668109,-151.0,0.000299,7]
[337101063,1725426668120,-313.562476,0.000299,7]
[337101064,1725426668129,-313.562476,0.000299,7]
[337101065,1725426668138,-151.0,0.000299,7]
[337101066,1725426668148,-151.0,0.000299,7]
[337101067,1725426668157,-151.0,0.000299,7]
[337101068,1725426668167,-151.0,0.000299,7]
[337101069,1725426668177,-151.0,0.000299,7]
[337101070,1725426668190,-151.0,0.000299,7]
[337101071,1725426668200,-151.0,0.000299,7]
[337101072,1725426668210,-151.0,0.000299,7]
[337101073,1725426668219,-157.256413,0.000299,7]
[337101074,1725426668229,-151.0,0.000299,7]
[337101075,1725426668239,-379.244413,0.000299,7]
[337101076,1725426668249,-379.244413,0.000299,7]
[337101077,1725426668259,-2000.0,0.00029924,5]
[337101078,1725426668268,-166.0,0.0003,2]
[337101079,1725426668278,-159.0,0.0003,2]
[337101080,1725426668288,-200.0,0.0003,5]
[337101081,1725426668302,-204.77929,0.00030119,2]
[337101082,1725426668312,-500.0,0.00030136,2]
[337101083,1725426668321,-500.0,0.00030136,2]
[337101084,1725426668331,-299.23596452,0.00030136,2]
[337101085,1725426668341,-500.0,0.00030136,2]
[337101086,1725426668352,-500.0,0.00030136,2]
[337101087,1725426668361,-500.0,0.00030136,2]
[337101088,1725426668373,-500.0,0.00030136,2]
[337101089,1725426668383,-500.0,0.00030136,2]
[337101090,1725426668393,-1302.87,0.00030136,2]
[337101091,1725426668403,-1156.02,0.00030136,2]
[337101092,1725426668414,-760.8,0.00030136,2]
[337101093,1725426668424,-500.0,0.00030136,2]
[337101094,1725426668434,-1287.53319319,0.00030136,2]
[337101095,1725426668632,-50.54508469,0.00030136,2]
[337101096,1725426668645,-744.45172212,0.00030136,2]
[337101097,1725426668655,-500.0,0.00030136,2]
[337101098,1725426668667,-10473.4,0.00030136,2]
[337101099,1725426668678,-500.0,0.00030136,2]
[337101100,1725426668688,-885.72,0.00030136,2]
[337101101,1725426668699,-871.3,0.00030136,2]
[337101102,1725426668709,-2887.27,0.00030136,2]
[337101103,1725426668721,-1285.92,0.00030136,2]
[337101104,1725426668731,-193.58380506,0.00030136,2]
[337101105,1725426668744,-792.00619494,0.00030136,2]
[337101106,1725426668755,-2746.31948228,0.00030136,2]
[337101107,1725426668768,-553.21713821,0.00030136,2]
[337101108,1725426668779,-836.05337951,0.00030136,2]
[337101109,1725426668789,-368.93293021,0.00030136,2]
[337101110,1725426668805,-131.06706979,0.00030136,2]
[337101111,1725426668815,-500.0,0.00030136,2]
[337101112,1725426668825,-500.0,0.00030136,2]
[337101113,1725426668835,-500.0,0.00030136,2]
[337101114,1725426668845,-500.0,0.00030136,2]
[337101115,1725426668856,-500.0,0.00030136,2]
[337101116,1725426668866,-543.17,0.00030136,2]
[337101117,1725426668876,-6518.68,0.00030136,2]
[337101118,1725426668888,-500.0,0.00030136,2]
[337101119,1725426668899,-1587.43,0.00030136,2]
[337101120,1725426668910,-881.43,0.00030136,2]
[337101121,1725426668921,-5985.78,0.00030136,2]
[337101122,1725426668932,-506.34,0.00030136,2]
[337101123,1725426668944,-500.0,0.00030136,2]
[337101124,1725426668954,-1326.71,0.00030136,2]
[337101125,1725426668964,-162.02598236,0.00030136,2]
[337101126,1725426668975,-760.48,0.00030136,2]
[337101127,1725426668985,-500.0,0.00030136,2]
[337101128,1725426668995,-500.0,0.00030136,2]
[337101129,1725426669006,-500.0,0.00030136,2]
[337101130,1725426669015,-1143.83,0.00030136,2]
[337101131,1725426669027,-2460.73,0.00030136,2]
[337101132,1725426669037,-500.0,0.00030136,2]
[337101133,1725426669047,-500.0,0.00030136,2]
[337101134,1725426669056,-500.0,0.00030136,2]
[337101135,1725426669066,-584.31,0.00030136,2]
[337101136,1725426669076,-807.59,0.00030136,2]
[337101137,1725426669085,-1986.82,0.00030136,2]
[337101138,1725426669095,-1131.76,0.00030136,2]
[337101139,1725426669105,-500.0,0.00030136,2]
[337101140,1725426669115,-37.62010416,0.00030136,2]
[337101141,1725426669128,-264.46625028,0.00030136,2]
[337101142,1725426669142,-197.91364556,0.00030136,2]
[337101143,1725426669151,-500.0,0.00030136,2]
[337101144,1725426669162,-919.57,0.00030136,2]
[337101145,1725426669171,-46.55287786,0.00030137,10]
[337101146,1725426669201,-434.26649374,0.00030137,10]
[337101150,1725427024414,300.0,0.000201,2]
[337101151,1725427129193,350.0,0.000201,2]
[337101157,1725427539194,-190.4544448,0.00024339,2]
[337101158,1725427539221,-181.133726,0.00024524,2]
[337101159,1725427539246,-507.435693,0.00024658,2]
[337101160,1725427539271,-161.41838,0.00025271,2]
[337101161,1725427539294,-2158.18968346,0.00025326,2]
[337101162,1725427544121,-841.81031654,0.00025326,2]
[337101163,1725427544146,-161.41838,0.00025391,2]
[337101164,1725427544172,-161.41838,0.0002551,2]
[337101165,1725427544199,-161.41838,0.0002563,2]
[337101166,1725427544223,-161.41838,0.0002575,2]
[337101167,1725427544249,-161.41838,0.00025869,2]
[337101168,1725427544275,-161.41838,0.00025989,2]
[337101169,1725427544301,-161.41838,0.00026109,2]
[337101170,1725427544325,-161.41838,0.00026229,2]
[337101171,1725427544349,-64.44800744,0.0002627,2]
[337101173,1725427628187,-517.07677,0.00024658,2]
[337101174,1725427628207,-300.0,0.00025673,2]
[337101175,1725427628230,-394.13728169,0.00025674,2]
[337101176,1725427628259,-1140.68655438,0.00025674,2]
[337101177,1725427638178,-459.24724603,0.00025674,2]
[337101178,1725427642114,-1383.22132374,0.00025674,2]
[337101179,1725427654121,-5399.25414283,0.00025674,2]
[337101184,1725427757142,-844.19028642,0.00024898,2]
[337101185,1725427767119,-1229.12792444,0.00025275,2]
[337101204,1725427832051,-300.0,0.00025199,2]
[337101205,1725427832061,-198.25893914,0.000252,2]
[337101206,1725427832103,-93.19656869,0.000252,2]
[337101207,1725427832190,-134.57933908,0.000252,2]
[337101210,1725427838226,-11570.96515309,0.000252,2]
[337101211,1725427838236,-831.32994056,0.00025275,2]
[337101212,1725427838392,-161.41838,0.00025452,2]
[337101213,1725427838405,-16123.45345133,0.00025674,2]
[337101214,1725427838415,-161.41838,0.00026116,2]
[337101215,1725427838423,-13299.38378041,0.000266,10]
[337101216,1725427838433,-161.41838,0.00026779,2]
[337101217,1725427838444,-150.0,0.000273,2]
[337101218,1725427838453,-2555.78,0.00027387,3]
[337101219,1725427838463,-500.0,0.00027396,2]
[337101220,1725427838472,-159.48676622,0.00027396,2]
[337101221,1725427838482,-161.71349615,0.00027396,2]
[337101222,1725427838491,-500.0,0.00027396,2]
[337101223,1725427838503,-229.26868894,0.00027396,2]
[337101224,1725427838514,-500.0,0.00027397,2]
[337101225,1725427838526,-500.0,0.00027397,2]
[337101226,1725427838536,-500.0,0.00027397,2]
[337101227,1725427838546,-500.0,0.00027397,2]
[337101228,1725427838556,-500.0,0.00027397,2]
[337101229,1725427838565,-500.0,0.00027397,2]
[337101230,1725427838575,-500.0,0.00027397,2]
[337101231,1725427838586,-529.3908934,0.00027397,2]
[337101232,1725427838597,-500.0,0.00027397,2]
[337101233,1725427838608,-500.0,0.00027397,2]
[337101234,1725427838618,-500.0,0.00027397,2]
[337101235,1725427838630,-500.0,0.00027397,2]
[337101236,1725427838639,-584.31,0.00027397,2]
[337101237,1725427838652,-500.0,0.00027397,2]
[337101238,1725427838661,-500.0,0.00027397,2]
[337101239,1725427838671,-500.0,0.00027397,2]
[337101240,1725427838682,-500.0,0.00027397,2]
[337101241,1725427838693,-531.18,0.00027397,2]
[337101242,1725427838702,-480.31688723,0.00027397,2]
[337101243,1725427838712,-500.0,0.00027397,2]
[337101244,1725427838724,-500.0,0.00027397,2]
[337101245,1725427838736,-500.0,0.00027397,2]
[337101246,1725427838746,-500.0,0.00027397,2]
[337101247,1725427838756,-500.0,0.00027397,2]
[337101248,1725427838766,-500.0,0.00027397,2]
[337101249,1725427838777,-500.0,0.00027397,2]
[337101250,1725427838788,-500.0,0.00027397,2]
[337101251,1725427838798,-500.0,0.00027397,2]
[337101252,1725427838807,-500.0,0.00027397,2]
[337101253,1725427838818,-500.0,0.00027397,2]
[337101254,1725427838828,-500.0,0.00027397,2]
[337101255,1725427838840,-500.0,0.00027397,2]
[337101256,1725427838850,-500.0,0.00027397,2]
[337101257,1725427838860,-506.34,0.00027397,2]
[337101258,1725427838871,-500.0,0.00027397,2]
[337101259,1725427838880,-500.0,0.00027397,2]
[337101260,1725427838890,-500.0,0.00027397,2]
[337101261,1725427838900,-500.0,0.00027397,2]
[337101262,1725427838909,-500.0,0.00027397,2]
[337101263,1725427838918,-162.02598236,0.00027397,2]
[337101264,1725427838928,-500.0,0.00027397,2]
[337101265,1725427838937,-500.0,0.00027397,2]
[337101266,1725427838947,-500.0,0.00027397,2]
[337101267,1725427838956,-340.14283178,0.00027397,2]
[337101268,1725427838965,-500.0,0.00027397,2]
[337101269,1725427838974,-500.0,0.00027397,2]
[337101270,1725427838983,-500.0,0.00027397,2]
[337101271,1725427838992,-500.0,0.00027397,2]
[337101272,1725427839001,-500.0,0.00027397,2]
[337101273,1725427839011,-500.0,0.00027397,2]
[337101274,1725427839020,-500.0,0.00027397,2]
[337101275,1725427839030,-500.0,0.00027397,2]
[337101276,1725427839040,-500.0,0.00027397,2]
[337101277,1725427839049,-500.0,0.00027397,2]
[337101278,1725427839058,-500.0,0.00027397,2]
[337101279,1725427839068,-500.0,0.00027397,2]
[337101280,1725427839077,-500.0,0.00027397,2]
[337101281,1725427839086,-500.0,0.00027397,2]
[337101282,1725427839095,-500.0,0.00027397,2]
[337101283,1725427839105,-500.0,0.00027397,2]
[337101284,1725427839115,-500.0,0.00027397,2]
[337101285,1725427839125,-500.0,0.00027397,2]
[337101286,1725427839142,-500.0,0.00027397,2]
[337101287,1725427839151,-500.0,0.00027397,2]
[337101288,1725427839161,-500.0,0.00027397,2]
[337101289,1725427839171,-242.95672427,0.00027397,2]
[337101290,1725427839181,-235.47,0.00027397,2]
[337101291,1725427839190,-500.0,0.00027397,2]
[337101292,1725427839199,-500.0,0.00027397,2]
[337101293,1725427839209,-500.0,0.00027397,2]
[337101294,1725427839218,-500.0,0.00027397,2]
[337101295,1725427839227,-500.0,0.00027397,2]
[337101296,1725427839237,-396.0060269,0.00027397,2]
[337101297,1725427839247,-500.0,0.00027397,2]
[337101298,1725427839255,-500.0,0.00027397,2]
[337101299,1725427839265,-500.0,0.00027397,2]
[337101300,1725427839274,-500.0,0.00027397,2]
[337101301,1725427839283,-500.0,0.00027397,2]
[337101302,1725427839292,-500.0,0.00027397,2]
[337101303,1725427839302,-500.0,0.00027397,2]
[337101304,1725427839311,-424.20624084,0.00027397,2]
[337101305,1725427839321,-500.0,0.00027397,2]
[337101306,1725427839330,-500.0,0.00027397,2]
[337101307,1725427839340,-500.0,0.00027397,2]
[337101308,1725427839349,-500.0,0.00027397,2]
[337101309,1725427839359,-500.0,0.00027397,2]
[337101310,1725427839369,-500.0,0.00027397,2]
[337101311,1725427839378,-500.0,0.00027397,2]
[337101312,1725427839387,-500.0,0.00027397,2]
[337101313,1725427839397,-500.0,0.00027397,2]
[337101314,1725427839406,-500.0,0.00027397,2]
[337101315,1725427839415,-506.34,0.00027397,2]
[337101316,1725427839425,-500.0,0.00027397,2]
[337101317,1725427839434,-500.0,0.00027397,2]
[337101318,1725427839443,-500.0,0.00027397,2]
[337101319,1725427839453,-500.0,0.00027397,2]
[337101320,1725427839462,-500.0,0.00027397,2]
[337101321,1725427839472,-500.0,0.00027397,2]
[337101322,1725427839481,-500.0,0.00027397,2]
[337101323,1725427839491,-500.0,0.00027397,2]
[337101324,1725427839500,-500.0,0.00027397,2]
[337101325,1725427839509,-500.0,0.00027397,2]
[337101326,1725427839519,-500.0,0.00027397,2]
[337101327,1725427839528,-500.0,0.00027397,2]
[337101328,1725427839538,-500.0,0.00027397,2]
[337101330,1725427839547,-500.0,0.00027397,2]
[337101331,1725427839557,-500.0,0.00027397,2]
[337101332,1725427839566,-500.0,0.00027397,2]
[337101333,1725427839575,-500.0,0.00027397,2]
[337101334,1725427839585,-500.0,0.00027397,2]
[337101335,1725427839596,-1474.74,0.00027397,2]
[337101336,1725427839607,-500.0,0.00027397,2]
[337101338,1725427839617,-500.0,0.00027397,2]
[337101339,1725427839628,-500.0,0.00027397,2]
[337101340,1725427839646,-617.89,0.00027397,2]
[337101342,1725427839656,-500.0,0.00027397,2]
[337101343,1725427839666,-500.0,0.00027397,2]
[337101344,1725427839675,-500.0,0.00027397,2]
[337101345,1725427839685,-500.0,0.00027397,2]
[337101346,1725427839694,-500.0,0.00027397,2]
[337101347,1725427839704,-500.0,0.00027397,2]
[337101348,1725427839713,-500.0,0.00027397,2]
[337101349,1725427839724,-540.48,0.00027397,2]
[337101350,1725427839734,-500.0,0.00027397,2]
[337101351,1725427839744,-500.0,0.00027397,2]
[337101352,1725427839754,-500.0,0.00027397,2]
[337101353,1725427839765,-500.0,0.00027397,2]
[337101354,1725427839776,-500.0,0.00027397,2]
[337101355,1725427839785,-500.0,0.00027671,2]
[337101357,1725427839795,-500.0,0.00027671,2]
[337101359,1725427839805,-500.0,0.00027671,2]
[337101361,1725427839815,-260.8,0.00027671,2]
[337101363,1725427839825,-500.0,0.00027671,2]
[337101365,1725427839834,-307.59,0.00027671,2]
[337101367,1725427839843,-500.0,0.00027671,2]
[337101369,1725427839853,-500.0,0.00027671,2]
[337101371,1725427839862,-500.0,0.00027671,2]
[337101373,1725427839872,-500.0,0.00027671,2]
[337101375,1725427839884,-500.0,0.00027671,2]
[337101377,1725427839893,-500.0,0.00027671,2]
[337101379,1725427839902,-504.93816067,0.00027671,2]
[337101381,1725427839911,-631.76,0.00027671,2]
[337101383,1725427839921,-500.0,0.00027671,2]
[337101385,1725427839930,-500.0,0.00027671,2]
[337101387,1725427839940,-500.0,0.00027671,2]
[337101389,1725427839950,-500.0,0.00027671,2]
[337101391,1725427839959,-500.0,0.00027671,2]
[337101393,1725427839969,-299.23596452,0.00027671,2]
[337101395,1725427839978,-500.0,0.00027671,2]
[337101397,1725427839987,-500.0,0.00027671,2]
[337101399,1725427839997,-500.0,0.00027671,2]
[337101402,1725427840006,-500.0,0.00027671,2]
[337101404,1725427840015,-500.0,0.00027671,2]
[337101406,1725427840025,-500.0,0.00027671,2]
[337101408,1725427840034,-500.0,0.00027671,2]
[337101409,1725427840043,-500.0,0.00027671,2]
[337101411,1725427840052,-500.0,0.00027671,2]
[337101413,1725427840061,-419.57,0.00027671,2]
[337101415,1725427840070,-643.83,0.00027671,2]
[337101417,1725427840079,-500.0,0.00027671,2]
[337101419,1725427840088,-500.0,0.00027671,2]
[337101422,1725427840098,-500.0,0.00027671,2]
[337101424,1725427840107,-500.0,0.00027671,2]
[337101426,1725427840116,-260.48,0.00027671,2]
[337101428,1725427840126,-500.0,0.00027671,2]
[337101430,1725427840144,-500.0,0.00027671,2]
[337101432,1725427840159,-500.0,0.00027671,2]
[337101434,1725427840169,-500.0,0.00027671,2]
[337101436,1725427840178,-385.72,0.00027671,2]
[337101438,1725427840188,-500.0,0.00027671,2]
[337101440,1725427840197,-500.0,0.00027671,2]
[337101442,1725427840207,-500.0,0.00027671,2]
[337101444,1725427840217,-500.0,0.00027671,2]
[337101446,1725427840226,-643.83,0.00027671,2]
[337101448,1725427840236,-500.0,0.00027671,2]
[337101450,1725427840246,-635.26162954,0.00027671,2]
[337101452,1725427840255,-500.0,0.00027671,2]
[337101454,1725427840265,-500.0,0.00027671,2]
[337101456,1725427840274,-500.0,0.00027671,2]
[337101458,1725427840283,-500.0,0.00027671,2]
[337101460,1725427840293,-500.0,0.00027671,2]
[337101462,1725427840302,-500.0,0.00027671,2]
[337101464,1725427840312,-500.0,0.00027671,2]
[337101466,1725427840321,-500.0,0.00027671,2]
[337101468,1725427840331,-500.0,0.00027671,2]
[337101470,1725427840340,-258.91319949,0.00027671,2]
[337101472,1725427840349,-1474.74,0.00027671,2]
[337101474,1725427840359,-500.0,0.00027671,2]
[337101476,1725427840369,-500.0,0.00027671,2]
[337101479,1725427840378,-500.0,0.00027671,2]
[337101481,1725427840395,-617.89,0.00027671,2]
[337101483,1725427840405,-462.56985068,0.00027671,2]
[337101485,1725427840415,-500.0,0.00027671,2]
[337101487,1725427840426,-500.0,0.00027671,2]
[337101489,1725427840434,-500.0,0.00027671,2]
[337101491,1725427840444,-500.0,0.00027671,2]
[337101493,1725427840453,-500.0,0.00027671,2]
[337101495,1725427840462,-500.0,0.00027671,2]
[337101497,1725427840473,-540.48,0.00027671,2]
[337101499,1725427840483,-500.0,0.00027671,2]
[337101501,1725427840493,-500.0,0.00027671,2]
[337101503,1725427840502,-500.0,0.00027671,2]
[337101505,1725427840512,-500.0,0.00027671,2]
[337101507,1725427840522,-500.0,0.00027671,2]
[337101509,1725427840533,-420.0,0.00027719,2]
[337101512,1725427840543,-500.0,0.00027934,2]
[337101513,1725427840552,-508.04999932,0.00027934,2]
[337101516,1725427840561,-500.0,0.00027934,2]
[337101518,1725427840571,-495.556805,0.00027934,2]
[337101520,1725427840581,-500.0,0.00027934,2]
[337101522,1725427840591,-5274.23110403,0.00027935,15]
[337101524,1725427840602,-117740.405146,0.00027935,3]
[337101526,1725427840613,-139064.01381693,0.00027935,2]
[337101529,1725427840629,-27010.46614669,0.00027935,2]
[337101531,1725427840648,-1059.0542281,0.00027935,2]
[337101534,1725427840661,-7321.97638431,0.00027935,2]
[337101781,1725427843242,-500.0,0.00027397,2]
[337101783,1725427843251,-500.0,0.00027397,2]
[337101785,1725427843260,-500.0,0.00027671,2]
[337101787,1725427843270,-500.0,0.00027671,2]
[337101790,1725427843280,-2129.81,0.00027925,3]
[337101792,1725427843289,-16764.18608652,0.00027935,2]
[337102008,1725427846236,-5128.33735498,0.00027935,2]
[337102374,1725428734152,-519.040928,0.00024658,2]
[337102375,1725428734175,-162.091303,0.00025709,2]
[337102376,1725428734199,-300.0,0.00025728,2]
[337102377,1725428734221,-300.0,0.00025728,2]
[337102378,1725428734244,-1893.80087409,0.00025729,2]
[337102379,1725428748116,-1265.46265832,0.00025729,2]
[337102380,1725428828136,-300.0,0.0002523,2]
[337102381,1725428828162,-2686.61154357,0.00025231,2]
[337102382,1725428839110,-1254.90094962,0.00025231,2]
[337102383,1725428844161,-450.0,0.00025231,2]
[337102384,1725428848119,-1716.07891025,0.00025231,2]
[337102385,1725428849117,-1036.59089044,0.00025231,2]
[337102389,1725428946142,-300.0,0.0002523,2]
[337102390,1725428946167,-838.05276662,0.00025231,2]
[337102419,1725429032367,-300.0,0.0002523,2]
[337102420,1725429032383,-828.3,0.00025231,2]
[337102439,1725429038356,-10213.0,0.00025231,2]
[337102460,1725429038537,-352.77034501,0.00025231,2]
[337102464,1725429038571,-5523.69459449,0.00025231,2]
[337102467,1725429038584,-1512.510931,0.00025376,2]
[337102469,1725429038594,-162.091303,0.00025506,2]
[337102471,1725429038606,-162.091303,0.00025772,2]
[337102473,1725429038617,-228.9195821,0.00025955,2]
[337102483,1725429038803,-162.091303,0.00026038,2]
[337102484,1725429038815,-162.091303,0.00026304,2]
[337102485,1725429038825,-162.091303,0.00026569,2]
[337102486,1725429038835,-2722.09440995,0.0002679,2]
[337102487,1725429038845,-162.091303,0.00026835,2]
[337102488,1725429038857,-174.29349119,0.0002688,2]
[337102489,1725429038869,-27355.62383757,0.0002689,3]
[337102490,1725429038881,-1000.0,0.0002689,2]
[337102491,1725429038891,-521.66397051,0.000269,2]
[337102492,1725429038903,-2456.41,0.0002696,3]
[337102493,1725429038914,-500.0,0.00026968,2]
[337102494,1725429038925,-500.0,0.00026968,2]
[337102495,1725429038935,-500.0,0.00026968,2]
[337102496,1725429038946,-500.0,0.00026968,2]
[337102497,1725429038957,-500.0,0.00026968,2]
[337102498,1725429038966,-500.0,0.00026968,2]
[337102499,1725429038976,-500.0,0.00026968,2]
[337102500,1725429038986,-500.0,0.00026968,2]
[337102501,1725429038996,-500.0,0.00026968,2]
[337102502,1725429039006,-500.0,0.00026968,2]
[337102503,1725429039016,-500.0,0.00026968,2]
[337102504,1725429039031,-500.0,0.00026968,2]
[337102505,1725429039042,-500.0,0.00026968,2]
[337102506,1725429039053,-300.58809405,0.00026968,2]
[337102507,1725429039066,-500.0,0.00026968,2]
[337102508,1725429039075,-500.0,0.00026968,2]
[337102509,1725429039085,-500.0,0.00026968,2]
[337102510,1725429039095,-500.0,0.00026968,2]
[337102511,1725429039106,-500.0,0.00026968,2]
[337102512,1725429039116,-500.0,0.00026968,2]
[337102513,1725429039128,-500.0,0.00026968,2]
[337102514,1725429039139,-500.0,0.00026968,2]
[337102515,1725429039150,-500.0,0.00026968,2]
[337102516,1725429039160,-500.0,0.00026968,2]
[337102517,1725429039170,-500.0,0.00026968,2]
[337102518,1725429039180,-500.0,0.00026968,2]
[337102519,1725429039190,-500.0,0.00026968,2]
[337102520,1725429039200,-500.0,0.00026968,2]
[337102521,1725429039210,-500.0,0.00026968,2]
[337102522,1725429039219,-500.0,0.00026968,2]
[337102523,1725429039228,-500.0,0.00026968,2]
[337102524,1725429039239,-508.04999932,0.00026969,2]
[337102525,1725429039249,-500.0,0.00026969,2]
[337102526,1725429039269,-500.0,0.00026969,2]
[337102527,1725429039281,-500.0,0.00026969,2]
[337102528,1725429039291,-495.556805,0.00026969,2]
[337102529,1725429039300,-5274.23110403,0.0002697,15]
[337102530,1725429039310,-7231.72146254,0.0002697,15]
[337102531,1725429039319,-353221.215438,0.0002697,3]
[337102532,1725429039329,-594493.96002673,0.0002697,2]
[337102533,1725429039344,-31598.88021015,0.0002697,2]
[337102538,1725429040328,-321370.89296694,0.0002697,2]
[337102539,1725429040389,-334.53155508,0.0002697,2]
[337102549,1725429043394,-319.87233744,0.0002697,2]
[337102550,1725429043542,-20393.99608652,0.0002697,2]
[337102559,1725429046396,-2000.0,0.0002696,3]
[337102560,1725429088372,482.063909,0.00024658,2]
[337102571,1725429959376,-493.088882,0.00024658,2]
[337102572,1725429959398,-309.521094,0.00024912,2]